{"text_format":"1","workbook":"xlsx","n_sheets":6,"sheets":["Sheet1","Sheet1 (2)","Sheet1 (3)","Sheet1 (4)","Sheet1 (5)","Sheet1 (6)"],"not_rendered":{"charts":0,"images":0,"macros":1,"external_links":0,"defined_names":0,"comments":0,"pivot_tables":0},"unopened":[],"bounds":{"document_bytes":16777216,"sheet_cells":100000,"rows_first":2000,"rows_last":500,"rows_between":2000,"halvings":0,"cell_chars":16384,"cell_head_chars":4096},"cells_cut":0,"cells_raw":0,"read":"whole","date_system":"1900"}

{"sheet":"Sheet1","index":0,"n_rows":8,"n_cols":8,"rows_kept":8,"cut":false,"hidden":false,"merged":[]}
["Heading 1","Heading 2","Heading 3","Heading 4"]
["Data","Data","Data",454,{"$f":"2*D2","v":908},null,null,"Alt + F8 to run Macro, Click Edit if you want to see the code (after you hit Alt + F8)"]
["Data","Data","Data",316,632]
["Data","Data","Data",461,922]
["Data","Data","Data",308,616]
["Data","Data","Data",389,778]
["Data","Data","Data",278,556]
["Data","Data","Data",172,344]

{"sheet":"Sheet1 (2)","index":1,"n_rows":11,"n_cols":5,"rows_kept":11,"cut":false,"hidden":false,"merged":[]}
["Heading 1","Heading 2","Heading 3","Heading 4","Heading 5"]
["Data","Data","Data",454,{"$f":"2*D2","v":908}]
["Data","Data","Data",316,{"$f":"2*D3","v":632}]
["Data","Data","Data",461,922]
["Data","Data","Data",308,616]
["Data","Data","Data",389,778]
["Data","Data","Data",278,556]
["Data","Data","Data",172,344]
["Data","Data","Data",389,778]
["Data","Data","Data",278,556]
["Data","Data","Data",172,344]

{"sheet":"Sheet1 (3)","index":2,"n_rows":8,"n_cols":5,"rows_kept":8,"cut":false,"hidden":false,"merged":[]}
["Heading 1","Heading 2","Heading 3","Heading 4","Heading 5"]
["Data","Data","Data",454,{"$f":"2*D2","v":908}]
["Data","Data","Data",316,{"$f":"2*D3","v":632}]
["Data","Data","Data",461,922]
["Data","Data","Data",308,616]
["Data","Data","Data",389,778]
["Data","Data","Data",278,556]
["Data","Data","Data",172,344]

{"sheet":"Sheet1 (4)","index":3,"n_rows":8,"n_cols":5,"rows_kept":8,"cut":false,"hidden":false,"merged":[]}
["Heading 1","Heading 2","Heading 3","Heading 4","header"]
["Data","Data","Data",454,{"$f":"D2*2","v":908}]
["Data","Data","Data",316,{"$f":"D3*2","v":632}]
["Data","Data","Data",461,922]
["Data","Data","Data",308,616]
["Data","Data","Data",389,778]
["Data","Data","Data",278,556]
["Data","Data","Data",172,344]

{"sheet":"Sheet1 (5)","index":4,"n_rows":4,"n_cols":5,"rows_kept":4,"cut":false,"hidden":false,"merged":[]}
["Heading 1","Heading 2","Heading 3","Heading 4","header"]
["Data","Data","Data",454,{"$f":"D2*2","v":908}]
["Data","Data","Data",316,{"$f":"D3*2","v":632}]
["Data","Data","Data",461,922]

{"sheet":"Sheet1 (6)","index":5,"n_rows":29,"n_cols":8,"rows_kept":29,"cut":false,"hidden":false,"merged":[]}
["Heading 1","Heading 2","Heading 3","Heading 4",null,null,null,"header"]
["Data","Data","Data",454,null,null,null,{"$f":"G2*2","v":0}]
["Data","Data","Data",316,null,null,null,{"$f":"G3*2","v":0}]
["Data","Data","Data",461,null,null,null,0]
["Data","Data","Data",308,null,null,null,0]
["Data","Data","Data",389,null,null,null,0]
["Data","Data","Data",278,null,null,null,0]
["Data","Data","Data",172,null,null,null,0]
[null,null,null,null,null,null,null,0]
[null,null,null,null,null,null,null,0]
[null,null,null,null,null,null,null,0]
[null,null,null,null,null,null,null,0]
[null,null,null,null,null,null,null,0]
[null,null,null,null,null,null,null,0]
[null,null,null,null,null,null,null,0]
[null,null,null,null,null,null,null,0]
[null,null,null,null,null,null,null,0]
[null,null,null,null,null,null,null,0]
[null,null,null,null,null,null,null,0]
[null,null,null,null,null,null,null,0]
[null,null,null,null,null,null,null,0]
[null,null,null,null,null,null,null,0]
[null,null,null,null,null,null,null,0]
[null,null,null,null,null,null,null,0]
[null,null,null,null,null,null,null,0]
[null,null,null,null,null,null,null,0]
[null,null,null,null,null,null,null,0]
[null,null,null,null,null,null,null,0]
[null,null,null,null,null,null,null,0]